bitfinex/quotes_ETHUSD_20260114
["timestamp","ask_amount","ask_price","bid_price","bid_amount"]
[1768411401457,2.96463194,3373.1,3371.4,2.62401867]
[1768411401743,0.396,3372.9,3371.4,2.62401867]
[1768411402623,5.92979126,3372.8,3371.6,2.59679165]
[1768411403525,8.69400263,3372.8,3371.6,2.59679165]
[1768411404550,5.92979126,3372.8,3371.6,2.59679165]
[1768411404849,0.396,3372.7,3371.8,2.59679165]
[1768411405763,0.002,3373.2,3371.8,2.59679165]
[1768411405764,2.96463194,3373.1,3371.8,2.59679165]
[1768411405928,0.396,3373.0,3371.8,2.59679165]
[1768411406252,0.396,3373.0,3372.0,2.59679165]
[1768411406829,3.36073136,3373.0,3372.2,2.59679165]
[1768411407020,0.002,3373.2,3372.2,2.59679165]
[1768411407224,0.396,3373.1,3372.2,2.59679165]
[1768411407439,0.396,3373.1,3371.9,5.56239333]
[1768411407641,0.396,3373.1,3371.9,2.59679165]
[1768411407858,2.79480843,3373.0,3371.7,3.35579095]
[1768411408054,2.79480843,3373.0,3371.8,2.96573377]
[1768411408258,2.76421137,3373.0,3371.6,2.59679165]
[1768411408459,2.76421137,3372.8,3371.2,5.56304441]
[1768411408763,2.76421137,3372.8,3371.3,2.96616033]
[1768411409133,8.69417845,3372.7,3371.2,2.59679165]
[1768411409368,5.92996708,3372.7,3371.3,2.62645379]
[1768411409539,0.396,3372.6,3371.3,2.59679165]
[1768411409731,0.396,3372.6,3371.5,2.59679165]
[1768411410662,0.396,3372.5,3371.5,2.59679165]
[1768411411239,5.96109166,3372.4,3371.1,2.96632426]
[1768411411440,5.96109166,3372.4,3371.4,2.9661035]
[1768411411655,5.96109166,3372.4,3371.4,2.96612405]
[1768411411853,2.99584436,3372.4,3371.5,2.96602255]
[1768411412055,2.9652473,3372.4,3371.5,2.96602255]
[1768411412356,2.9652473,3372.4,3371.4,5.56287725]
[1768411412552,2.9652473,3372.4,3371.5,5.56281543]
[1768411412864,0.396,3372.3,3371.5,5.56281543]
[1768411413657,0.396,3372.3,3371.6,2.59679165]
[1768411413966,3.36135125,3372.3,3371.6,2.59679165]
[1768411414472,3.36135125,3372.3,3371.7,0.001]
[1768411416584,2.9652976,3372.4,3371.7,2.59779165]
[1768411416774,0.396,3372.2,3371.7,2.59779165]
[1768411417084,0.1,3372.1,3371.7,2.59779165]
[1768411417283,0.396,3372.3,3371.7,2.59779165]
[1768411417585,0.24736367,3372.3,3371.7,2.59779165]
[1768411419592,0.24736367,3372.3,3371.7,5.56361507]
[1768411419769,0.24736367,3372.3,3371.7,2.59779165]
[1768411420175,0.24736367,3372.3,3371.7,5.56362567]
[1768411420685,0.24736367,3372.3,3371.7,2.59779165]
[1768411420986,0.24736367,3372.3,3371.7,5.56362773]
[1768411421787,2.76621137,3372.6,3371.2,2.44879165]
[1768411421961,3.36115937,3372.5,3371.2,2.59679165]
[1768411422586,2.76421137,3372.4,3371.2,2.59679165]
[1768411423379,0.396,3372.3,3371.2,2.59679165]
[1768411423964,3.36137297,3372.3,3371.4,2.96612683]
[1768411424388,0.396,3372.2,3371.4,5.96191492]
[1768411424593,0.396,3372.2,3371.7,2.59679165]
[1768411425179,0.396,3372.2,3371.4,5.93225366]
[1768411425382,0.396,3372.2,3371.4,8.52904531]
[1768411426307,0.002,3372.6,3371.5,2.62645203]
[1768411426613,0.396,3372.4,3371.5,2.62645203]
[1768411426913,0.396,3372.4,3371.7,2.59679165]
[1768411427407,0.002,3372.6,3371.7,2.59679165]
[1768411427584,0.398,3372.6,3371.9,2.59679165]
[1768411428105,0.398,3372.6,3372.0,2.96559905]
[1768411428301,0.398,3372.6,3372.0,8.52798975]
[1768411428874,0.398,3372.6,3372.1,2.59679165]
[1768411428875,0.002,3372.6,3372.1,2.59679165]
[1768411429771,0.002,3372.6,3371.7,0.001]
[1768411430008,0.03259706,3372.6,3371.7,0.001]
[1768411430300,2.96515937,3372.5,3371.7,0.001]
[1768411430604,0.03059706,3372.4,3371.7,0.001]
[1768411430978,9.56703963,3372.5,3371.7,0.001]
[1768411431176,6.60188026,3372.5,3371.7,0.001]
[1768411431910,9.56703963,3372.5,3371.7,0.001]
[1768411432815,3.87746627,3372.5,3371.7,0.001]
[1768411433506,0.396,3372.4,3371.7,0.001]
[1768411434409,0.002,3372.9,3372.2,2.67599015]
[1768411434585,0.002,3374.3,3372.3,0.27663149]
[1768411434586,2.72441399,3373.5,3372.3,0.27663149]
[1768411434790,2.72441399,3373.1,3371.9,5.931374]
[1768411435107,2.75501105,3373.1,3371.9,2.965687]
[1768411435418,2.75501105,3373.1,3371.8,3.06599015]
[1768411435575,5.9290881,3373.2,3371.7,0.001]
[1768411435576,2.72441399,3372.8,3371.7,0.001]
[1768411435780,2.72441399,3372.6,3371.7,0.001]
[1768411435977,3.12041399,3372.5,3371.7,0.001]
[1768411436986,2.9652473,3372.4,3371.7,0.001]
[1768411437392,5.9304946,3372.4,3371.7,0.001]
[1768411437600,0.03059706,3372.3,3371.7,0.001]
[1768411437826,0.93874763,3372.3,3371.7,0.001]
[1768411437993,0.90815057,3372.3,3371.7,0.001]
[1768411439022,2.96542316,3372.2,3371.7,0.001]
[1768411440232,8.65526031,3372.2,3371.7,0.001]
[1768411440406,2.75501105,3372.1,3370.8,2.67599015]
[1768411440726,3.12041399,3372.0,3370.8,5.91023093]
[1768411441040,3.12041399,3372.0,3370.9,2.96654978]
[1768411441528,5.931374,3371.9,3370.9,2.96654978]
[1768411441825,2.965687,3371.9,3370.9,2.96654978]
[1768411442028,6.62798226,3371.9,3370.8,2.94358917]
[1768411442226,2.72441399,3371.8,3370.8,2.96663305]
[1768411442527,6.38670925,3371.9,3370.8,8.609278]
[1768411442863,9.35239625,3371.9,3370.8,5.6426232]
[1768411443036,9.35239625,3371.9,3370.8,2.67599015]
[1768411443232,0.27499224,3371.8,3370.5,2.96687171]
[1768411443526,1.29890755,3371.7,3370.6,0.59349463]
[1768411443732,5.93190176,3371.6,3370.6,3.56031296]
[1768411444026,0.396,3371.5,3370.6,3.56031296]
[1768411444228,0.396,3371.5,3370.6,0.59349463]
[1768411444725,0.396,3371.5,3370.4,2.67699015]
[1768411444726,3.12041399,3371.5,3370.4,0.001]
[1768411446336,2.72441399,3371.3,3370.4,0.001]
[1768411446996,2.72441399,3371.3,3370.1,0.001]
[1768411447433,2.72441399,3371.3,3369.8,8.6110157]
[1768411447733,2.72441399,3371.3,3369.9,0.02967447]
[1768411447931,2.72441399,3371.1,3369.9,0.02967447]
[1768411448132,0.396,3371.0,3369.9,2.70566462]
[1768411448429,5.93313358,3370.9,3369.9,5.67308125]
[1768411448641,8.65754757,3370.9,3369.6,2.67599015]
[1768411448842,2.72441399,3370.8,3369.6,2.67599015]
[1768411449004,3.62976875,3370.8,3369.6,2.98268917]
[1768411449354,0.396,3370.7,3370.0,2.67599015]
[1768411449951,0.396,3370.7,3370.0,2.70566374]
[1768411450903,0.396,3370.7,3370.0,5.67301037]
[1768411451532,2.96666703,3370.8,3370.0,5.64333678]
[1768411451834,0.396,3370.7,3370.0,6.50442381]
[1768411452036,0.396,3370.6,3370.1,2.67599015]
[1768411452948,3.36283684,3370.6,3370.0,0.86108703]
[1768411453156,0.396,3370.6,3370.0,0.86108703]
[1768411453604,0.396,3370.6,3369.9,5.67310795]
[1768411454209,10.96991954,3371.2,3370.2,2.67599015]
[1768411454410,0.396,3371.1,3370.4,2.67599015]
[1768411454608,0.396,3371.1,3370.0,2.67599015]
[1768411454609,0.42859706,3371.0,3370.0,2.67599015]
[1768411454851,8.00361626,3370.9,3369.6,2.67599015]
[1768411455030,2.72441399,3370.8,3369.9,2.96742205]
[1768411455345,2.72441399,3370.8,3369.7,3.27946175]
[1768411455512,0.398,3371.0,3370.0,2.96735585]
[1768411456022,0.398,3371.0,3370.0,2.9673507]
[1768411456415,0.398,3371.0,3369.9,5.64342719]
[1768411456616,5.93313358,3370.9,3370.0,0.64355093]
[1768411457017,5.93313358,3370.9,3370.0,3.6109072]
[1768411457251,5.93313358,3370.9,3370.0,0.64355093]
[1768411457916,5.93313358,3370.9,3370.0,3.61090512]
[1768411458116,5.93313358,3370.9,3370.0,0.64355093]
[1768411458950,5.93313358,3370.9,3370.0,5.64331116]
[1768411458951,2.96656679,3370.9,3370.0,5.64331116]
[1768411459445,0.002,3371.0,3370.3,2.67599015]
[1768411461141,0.002,3371.0,3370.4,2.54629259]
[1768411462654,0.002,3371.0,3370.2,2.96714292]
[1768411462862,5.27920227,3370.8,3369.8,2.54629259]
[1768411463148,5.27920227,3370.8,3370.0,2.96734989]
[1768411463553,8.2458869,3370.8,3369.9,6.15734595]
[1768411463957,5.27920227,3370.8,3369.9,6.15734595]
[1768411465037,8.24586742,3370.8,3369.9,6.15734595]
[1768411465374,5.27920227,3370.8,3369.9,6.15734595]
[1768411465555,8.24588208,3370.8,3369.9,3.18992185]
[1768411465734,9.40691234,3370.8,3369.9,5.51372411]
[1768411466135,6.44025454,3370.8,3369.9,5.51372411]
[1768411466546,6.44025454,3370.8,3370.0,2.54629259]
[1768411466746,1.16105227,3370.8,3370.0,2.54629259]
[1768411466943,1.16105227,3370.8,3370.2,2.54629259]
[1768411467144,0.396,3370.9,3370.2,2.54629259]
[1768411467350,0.396,3370.9,3370.3,5.5133875]
[1768411467556,0.396,3370.9,3370.3,2.54629259]
[1768411468055,0.002,3370.7,3370.3,2.54629259]
[1768411469323,0.002,3370.7,3370.5,2.54629259]
[1768411470556,0.002,3370.7,3370.5,0.84804642]
[1768411470754,0.002,3370.7,3370.1,2.54629259]
[1768411470955,0.002,3370.7,3370.3,5.51337914]
[1768411471967,0.002,3370.7,3370.1,2.54629259]
[1768411472763,0.002,3370.7,3369.9,2.96738586]
[1768411473059,0.002,3370.7,3370.0,2.96735038]
[1768411473450,0.002,3370.7,3369.9,6.361811]
[1768411475933,0.002,3370.7,3369.9,6.36184882]
[1768411476345,0.002,3370.7,3369.9,3.39441618]
[1768411476648,0.002,3370.7,3369.8,2.96753475]
[1768411476835,0.002,3370.7,3369.8,5.51382734]
[1768411477239,0.002,3370.7,3369.9,5.51366617]
[1768411477762,0.002,3370.7,3369.9,2.54629259]
[1768411478264,0.002,3370.7,3369.9,5.51372814]
[1768411478469,0.002,3370.7,3369.9,2.54629259]
[1768411479577,0.002,3370.7,3369.4,0.392]
[1768411479578,2.60957136,3370.6,3369.4,2.93829259]
[1768411479755,2.60957136,3370.4,3369.4,5.51514959]
[1768411480066,0.397,3370.3,3369.4,5.51514959]
[1768411480407,0.397,3370.3,3369.4,2.54729259]
[1768411480534,2.96718295,3370.2,3369.4,2.54729259]
[1768411480729,2.96718295,3370.2,3369.4,5.5151768]
[1768411481260,2.96718295,3370.2,3369.4,0.001]
[1768411481461,0.397,3370.1,3369.4,5.51514344]
[1768411481667,0.397,3370.1,3369.4,2.54729259]
[1768411481840,1.32114625,3370.1,3369.4,2.54729259]
[1768411482041,1.32114625,3370.1,3369.7,0.001]
[1768411482648,4.28842648,3370.1,3369.7,0.001]
[1768411483380,1.32114625,3370.1,3369.7,0.001]
[1768411483675,0.30065714,3370.3,3369.7,0.001]
[1768411483842,0.397,3370.2,3369.7,2.54729259]
[1768411484186,0.002,3370.4,3369.7,2.54729259]
[1768411484548,0.002,3370.4,3369.9,2.54629259]
[1768411484747,0.002,3370.4,3370.1,2.54629259]
[1768411484950,0.002,3370.7,3370.4,2.54629259]
[1768411485419,0.002,3370.7,3369.8,2.54629259]
[1768411485554,0.002,3370.7,3369.8,3.09778083]
[1768411485555,0.03259706,3370.7,3369.8,3.09778083]
[1768411486481,0.002,3370.7,3369.8,3.09778083]
[1768411486786,0.002,3370.7,3370.0,2.54629259]
[1768411486983,0.002,3370.7,3370.0,2.57596618]
[1768411487198,0.002,3370.7,3370.0,2.54629259]
[1768411487367,0.002,3370.7,3369.7,0.001]
[1768411487687,2.64216842,3370.7,3369.7,5.51487659]
[1768411488084,0.03259706,3370.7,3369.8,2.96751439]
[1768411488265,0.03259706,3370.7,3369.8,5.51380698]
[1768411489185,2.99941647,3370.7,3369.8,5.51380698]
[1768411489390,2.99941647,3370.7,3369.8,6.10438768]
[1768411489681,2.99941647,3370.7,3369.9,2.54629259]
[1768411489855,5.96623588,3370.7,3369.9,2.54629259]
[1768411490054,0.03059706,3370.6,3369.9,2.54629259]
[1768411490254,0.03059706,3370.6,3369.7,0.001]
[1768411490569,4.00410092,3370.5,3369.7,0.001]
[1768411490873,2.73679757,3370.4,3369.7,0.001]
[1768411491075,2.99769197,3370.3,3369.7,0.001]
[1768411491595,5.96478688,3370.3,3369.7,0.001]
[1768411494574,2.99769197,3370.3,3369.7,0.001]
[1768411494775,0.70017929,3370.2,3369.7,0.001]
[1768411495085,3.66736726,3370.2,3369.7,0.001]
[1768411495287,2.96718797,3370.2,3369.7,0.001]
[1768411496718,0.397,3370.1,3369.7,0.001]
[1768411497073,3.36432217,3370.1,3369.7,0.001]
[1768411497293,2.96732217,3370.1,3370.0,0.001]
[1768411497623,0.397,3370.1,3369.7,0.001]
[1768411498422,3.36427633,3370.1,3369.7,0.001]
[1768411498620,3.99761347,3370.1,3369.7,0.001]
[1768411498820,1.03033714,3370.1,3369.7,0.001]
[1768411499323,0.397,3370.1,3369.7,0.001]
[1768411500225,0.002,3370.4,3369.7,2.56418627]
[1768411500634,0.002,3370.4,3369.7,2.5938625]
[1768411500839,0.002,3370.7,3369.7,2.5938625]
[1768411500840,0.002,3370.7,3370.4,2.56318627]
[1768411501129,0.002,3371.3,3370.4,2.56318627]
[1768411501306,0.002,3371.3,3370.7,2.56318627]
[1768411501624,0.397,3371.7,3371.1,2.56318627]
[1768411501830,6.32873414,3371.7,3371.1,2.56318627]
[1768411502014,6.32873414,3371.7,3370.6,2.56318627]
[1768411502215,2.76739463,3371.6,3370.6,2.56318627]
[1768411502425,1.2062,3371.5,3370.6,2.56318627]
[1768411503316,2.96612683,3371.4,3370.6,2.56318627]
[1768411503942,5.93225366,3371.4,3370.6,2.56318627]
[1768411504136,2.96612683,3371.4,3370.6,2.56318627]
[1768411504334,2.73679757,3371.3,3370.3,2.95418627]
[1768411504532,0.397,3371.2,3370.3,2.95418627]
[1768411504842,2.96562654,3372.0,3370.7,2.56318627]
[1768411505141,0.397,3371.9,3370.7,2.56318627]
[1768411505343,6.32838925,3371.9,3371.1,2.56318627]
[1768411505510,3.99592592,3371.9,3371.1,2.56318627]
[1768411505915,6.96162817,3371.9,3371.1,2.56318627]
[1768411506118,3.99592592,3371.9,3371.1,2.56318627]
[1768411506426,6.96162817,3371.9,3371.1,2.56318627]
[1768411507744,3.99592592,3371.9,3371.1,2.56318627]
[1768411507953,0.002,3372.1,3371.2,2.56318627]
[1768411508120,0.002,3372.1,3371.4,2.56318627]
[1768411510051,0.399,3372.1,3371.1,2.56318627]
[1768411510238,0.5682497,3372.0,3371.1,2.56318627]
[1768411510853,0.002,3371.6,3371.1,2.56318627]
[1768411511663,0.002,3371.6,3370.8,2.95418627]
[1768411513135,0.002,3371.6,3370.8,0.391]
[1768411513565,3.13579757,3371.6,3370.5,2.56318627]
[1768411513770,0.34723652,3371.5,3370.5,2.56318627]
[1768411514256,5.93225366,3371.4,3370.5,2.56318627]
[1768411514447,0.03059706,3371.3,3370.5,2.56318627]
[1768411514644,2.76739463,3371.3,3370.0,5.53049579]
[1768411514863,2.76739463,3371.3,3370.0,2.56318627]
[1768411515067,1.19824146,3371.2,3370.0,2.56318627]
[1768411515267,0.397,3371.1,3370.4,2.56318627]
[1768411515648,2.73679757,3371.1,3369.7,2.56418627]
[1768411515853,0.397,3371.0,3369.9,5.5306079]
[1768411516163,3.36360555,3370.9,3369.9,2.56318627]
[1768411516358,0.397,3370.8,3369.9,2.56318627]
[1768411516559,1.19824146,3371.2,3369.9,2.56318627]
[1768411516878,5.93278158,3371.1,3369.9,2.56318627]
[1768411517039,0.397,3371.0,3369.9,2.56318627]
[1768411517874,0.397,3370.9,3369.9,2.56318627]
[1768411518180,0.397,3370.9,3370.0,5.9347181]
[1768411518347,2.96651195,3371.0,3370.1,2.56318627]
[1768411518672,0.99028342,3370.9,3370.1,2.56318627]
[1768411519570,2.73679757,3371.5,3370.3,2.56318627]
[1768411519571,2.96606,3371.5,3370.3,2.56318627]
[1768411519780,0.397,3371.3,3370.5,2.56318627]
[1768411520271,0.397,3371.3,3370.6,2.56318627]
[1768411520676,0.397,3371.3,3370.7,2.56690332]
[1768411522064,0.397,3371.3,3370.3,5.38592349]
[1768411522368,3.36323549,3371.3,3370.4,2.56690332]
[1768411522556,6.32947098,3371.3,3370.4,2.56690332]
[1768411524446,6.32947098,3371.3,3371.0,0.001]
[1768411525277,6.32947098,3371.3,3369.5,2.56690332]
[1768411525278,2.59558837,3371.2,3369.5,2.56690332]
[1768411525478,2.55850959,3370.9,3369.2,2.56690332]
[1768411525686,2.55850959,3370.7,3368.9,2.56690332]
[1768411525880,2.55850959,3370.7,3368.9,5.53517987]
[1768411526079,2.55850959,3370.7,3369.1,2.56690332]
[1768411526386,2.55850959,3370.7,3369.1,5.53500847]
[1768411526775,11.45900208,3370.6,3369.1,2.56690332]
[1768411528157,0.397,3370.5,3369.5,2.56690332]
[1768411528661,2.96700688,3370.4,3369.5,2.56690332]
[1768411529092,6.27041445,3370.4,3369.2,2.56690332]
[1768411529320,2.55850959,3370.3,3369.2,2.56690332]
[1768411529481,2.55850959,3370.3,3368.9,2.56690332]
[1768411529964,2.55850959,3370.3,3368.9,5.53522273]
[1768411530875,5.9343659,3370.2,3368.9,5.53522273]
[1768411531104,5.9343659,3370.2,3368.9,2.56690332]
[1768411531309,5.9343659,3370.2,3368.9,5.53522136]
[1768411531807,11.46005844,3370.2,3368.9,2.56290332]
[1768411532013,1.17964591,3370.1,3368.9,2.56290332]
[1768411532295,0.397,3370.0,3368.9,2.56290332]
[1768411533164,5.9348942,3369.9,3368.9,2.56290332]
[1768411533758,0.397,3369.8,3369.0,2.56690332]
[1768411533999,0.397,3369.7,3369.0,2.56690332]
[1768411534993,2.9674471,3369.9,3369.0,2.56690332]
[1768411535193,0.397,3369.8,3369.1,2.56690332]
[1768411535398,5.93497377,3369.9,3369.1,2.56690332]
[1768411535602,0.397,3369.7,3368.5,2.56690332]
[1768411535775,0.397,3369.7,3368.7,2.56690332]
[1768411536111,0.397,3369.7,3368.8,2.56690332]
[1768411536293,0.397,3369.7,3368.9,2.56690332]
[1768411536497,0.397,3369.7,3369.0,2.56690332]
[1768411536695,0.397,3369.7,3369.1,2.56690332]
[1768411536892,0.397,3369.7,3369.3,0.001]
[1768411537093,3.36464137,3369.7,3369.3,0.001]
[1768411537509,3.36463775,3369.7,3369.3,0.001]
[1768411540291,5.93418982,3370.3,3369.3,2.56790332]
[1768411540497,1.32075432,3370.2,3369.3,2.56790332]
[1768411541512,2.967271,3370.1,3369.3,2.56790332]
[1768411541713,5.934542,3370.1,3369.3,2.56790332]
[1768411543511,2.967271,3370.1,3369.3,2.56790332]
[1768411543717,2.967271,3370.1,3369.5,2.56690332]
[1768411543718,0.397,3370.0,3369.5,2.56690332]
[1768411544098,0.397,3370.4,3369.5,3.12189091]
[1768411544838,0.03708868,3370.3,3369.5,0.55498759]
[1768411545018,0.03708868,3370.3,3369.3,2.56790332]
[1768411545328,2.59559827,3370.3,3369.3,2.56790332]
[1768411545515,2.55850959,3370.3,3369.3,0.001]
[1768411545712,2.55850959,3370.1,3369.3,0.001]
[1768411545918,2.55850959,3370.0,3369.3,0.001]
[1768411546095,1.54300584,3369.9,3369.3,0.001]
[1768411547627,2.96753516,3369.8,3369.3,0.001]
[1768411550443,0.002,3369.5,3369.3,0.001]
[1768411555063,2.35776335,3369.3,3367.9,2.39126714]
[1768411555354,0.67121658,3369.4,3367.9,2.39126714]
[1768411555355,2.35776335,3369.1,3367.9,2.39126714]
[1768411555937,2.35776335,3369.1,3367.9,5.3604764]
[1768411556138,2.35776335,3369.1,3368.0,2.48426714]
[1768411556435,2.96823983,3369.0,3368.0,2.48426714]
[1768411556649,0.397,3368.9,3368.0,2.48426714]
[1768411556960,2.96823983,3369.0,3368.0,2.48426714]
[1768411557154,0.397,3368.8,3368.0,2.48426714]
[1768411558267,3.36546363,3368.8,3368.0,2.48426714]
[1768411558651,0.397,3368.8,3368.0,2.48426714]
[1768411559152,0.397,3368.8,3368.1,2.48426714]
[1768411559561,3.36542344,3368.8,3368.1,2.48426714]
[1768411559767,4.08476332,3368.8,3368.1,2.48426714]
[1768411560268,4.08476332,3368.8,3367.8,2.48426714]
[1768411560471,2.35776335,3368.7,3367.1,2.48426714]
[1768411560658,0.397,3368.6,3367.6,2.48426714]
[1768411560971,1.29839427,3368.6,3367.6,2.48426714]
[1768411561355,3.65615762,3368.6,3367.6,2.48426714]
[1768411562445,2.96868042,3368.5,3367.6,2.48426714]
[1768411562956,0.397,3368.4,3367.7,2.48426714]
[1768411563162,0.397,3368.3,3367.7,2.48426714]
[1768411563871,0.82370747,3368.3,3367.7,2.48426714]
[1768411564077,0.82370747,3368.3,3367.5,2.48426714]
[1768411564277,2.35776335,3368.2,3366.4,2.97048471]
[1768411564476,2.96903298,3368.1,3366.6,2.48426714]
[1768411564652,3.36597338,3368.2,3366.6,2.48426714]
[1768411564855,0.67615412,3368.1,3366.8,2.48426714]
[1768411565079,0.67615412,3368.1,3367.0,2.48426714]
[1768411565455,0.42670747,3368.3,3367.0,2.48426714]
[1768411565653,3.36573319,3368.5,3367.0,2.57459186]
[1768411566379,0.71933988,3368.8,3367.4,8.90895051]
[1768411566673,0.002,3369.2,3368.1,2.48426714]
[1768411566971,0.002,3369.2,3368.3,2.48426714]
[1768411567478,2.97007987,3369.2,3368.3,2.48426714]
[1768411567656,0.002,3369.2,3368.3,2.48426714]
[1768411568276,0.002,3369.2,3368.3,2.77189385]
[1768411568574,0.002,3369.5,3369.0,2.48426714]
[1768411571496,0.002,3369.8,3369.5,2.48426714]
[1768411571789,5.9333096,3370.8,3369.5,2.48426714]
[1768411572502,2.9666548,3370.8,3369.6,5.9354226]
[1768411572704,3.83584541,3370.8,3369.8,2.48426714]
[1768411572913,0.86919061,3370.8,3369.9,2.87626714]
[1768411573214,0.37825155,3371.8,3370.5,2.48426714]
[1768411573395,0.37825155,3371.8,3370.5,2.87626714]
[1768411573396,0.397,3371.7,3370.5,2.87626714]
[1768411573898,3.36292633,3371.7,3370.5,2.87626714]
[1768411574068,0.397,3371.7,3370.5,2.87626714]
[1768411574271,0.37825155,3371.8,3370.5,2.87626714]
[1768411574467,0.37825155,3371.8,3370.7,2.48426714]
[1768411574769,0.002,3371.9,3370.9,2.48426714]
[1768411575080,0.002,3372.2,3371.3,2.48426714]
[1768411575593,2.96743212,3372.2,3371.3,2.48426714]
[1768411576104,0.002,3372.2,3371.3,2.48426714]
[1768411576288,0.002,3372.2,3371.7,2.48426714]
[1768411576488,0.002,3372.4,3371.7,2.87626714]
[1768411576790,0.002,3372.4,3371.7,5.84205684]
[1768411577187,0.002,3372.4,3371.8,2.48426714]
[1768411577388,0.002,3372.4,3371.7,0.392]
[1768411577590,0.002,3372.4,3371.6,0.392]
[1768411578419,0.002,3372.4,3371.4,2.48426714]
[1768411578728,8.28843381,3372.3,3371.0,2.74172633]
[1768411578916,3.22778107,3372.2,3370.7,5.45100821]
[1768411579115,2.75476335,3372.1,3370.7,5.84300526]
[1768411579435,0.002,3371.0,3370.7,5.84300526]
[1768411579729,0.002,3371.3,3370.7,2.87626714]
[1768411580103,0.002,3371.3,3370.9,2.48426714]
[1768411580300,0.002,3372.4,3371.1,2.3620317]
[1768411580523,0.002,3372.4,3371.5,2.29465673]
[1768411582717,0.002,3372.4,3371.6,5.26060761]
[1768411583949,0.002,3372.4,3371.3,2.29465673]
[1768411584233,2.46666958,3372.3,3371.1,0.392]
[1768411584431,0.24706696,3372.3,3371.2,2.29465673]
[1768411584604,0.002,3372.4,3371.2,2.29465673]
[1768411584804,0.002,3372.4,3371.2,5.26090562]
[1768411585029,5.3690034,3372.6,3371.2,5.26090562]
[1768411585231,8.33407485,3372.6,3371.2,5.26090562]
[1768411587959,8.33407485,3372.6,3371.3,2.29465673]
[1768411588144,0.83360749,3372.5,3371.4,2.91792032]
[1768411588349,0.397,3372.4,3371.4,2.91792032]
[1768411588858,0.83360749,3372.5,3371.5,2.29465673]
[1768411589029,5.9304946,3372.4,3371.5,2.29465673]
[1768411589553,5.9304946,3372.4,3371.1,3.35837609]
[1768411589554,5.9304946,3372.4,3371.2,2.29465673]
[1768411589756,5.9304946,3372.4,3371.2,5.26088821]
[1768411590077,5.9304946,3372.4,3371.3,2.96619366]
[1768411590374,5.9304946,3372.4,3371.2,5.26088657]
[1768411590557,0.63274946,3372.3,3371.2,6.12282151]
[1768411590728,0.63274946,3372.3,3371.3,2.96618542]
[1768411590929,2.96542316,3372.2,3371.3,2.96618542]
[1768411591550,2.96542316,3372.2,3371.3,5.26084215]
[1768411591756,0.002,3372.1,3371.3,5.26084215]
[1768411591930,0.002,3372.1,3371.3,5.64592974]
[1768411592660,0.002,3372.1,3371.4,2.30853653]
[1768411592958,0.002,3372.1,3371.5,5.26069558]
[1768411593185,0.002,3372.1,3371.6,0.01387719]
[1768411593344,0.002,3372.1,3371.3,0.38508759]
[1768411595862,0.002,3372.1,3371.3,3.35128291]
[1768411596463,0.002,3372.1,3371.4,2.29465673]
[1768411597764,0.002,3372.1,3371.3,0.38508759]
[1768411598368,2.42960289,3372.0,3370.7,2.9666878]
[1768411598568,2.42960289,3371.9,3370.6,5.26141941]
[1768411598758,2.42960289,3371.7,3370.3,5.26171609]
[1768411599068,2.42960289,3371.7,3370.0,5.26200144]
[1768411599466,0.397,3372.0,3370.1,0.392]
[1768411599467,2.42960289,3371.5,3370.1,0.392]
[1768411599772,2.42960289,3371.3,3370.1,3.35925695]
[1768411600141,2.42960289,3371.3,3370.1,5.65391368]
[1768411600554,2.42960289,3371.3,3370.2,2.29465673]
[1768411600781,1.52974555,3371.4,3370.2,2.29465673]
[1768411600986,8.36150465,3371.6,3370.1,6.32652795]
[1768411600987,0.397,3371.5,3370.4,2.29465673]
[1768411601290,3.36295088,3371.6,3370.4,2.29465673]
[1768411601461,5.93225366,3371.4,3370.4,2.29465673]
[1768411601661,2.91612683,3371.4,3370.4,2.29465673]
[1768411601848,2.91612683,3371.4,3370.4,2.5633224]
[1768411602253,5.88225366,3371.4,3370.4,2.5633224]
[1768411602466,8.31185655,3371.4,3370.4,0.392]
[1768411602752,2.96595088,3371.6,3370.5,2.30855454]
[1768411602953,2.96595088,3371.6,3370.5,2.29465673]
[1768411603278,0.397,3371.7,3370.7,2.29465673]
[1768411603483,3.36288889,3371.7,3370.8,0.01389121]
[1768411603680,4.23871829,3371.7,3370.8,0.01389121]
[1768411603885,7.20460718,3371.7,3370.7,2.29465673]
[1768411604502,7.20460718,3371.7,3370.7,5.26138857]
[1768411604664,7.20460718,3371.7,3370.7,2.29465673]
[1768411604869,4.23870386,3371.7,3370.9,2.29465673]
[1768411605184,3.36287446,3371.7,3370.9,2.82078673]
[1768411605373,6.32874892,3371.7,3370.6,5.26142821]
[1768411605573,0.03707438,3371.6,3370.6,2.29465673]
[1768411605783,0.03707438,3371.6,3370.6,5.26147253]
[1768411605784,2.96603885,3371.5,3370.6,5.26147253]
[1768411605984,3.36290615,3371.7,3370.7,2.29465673]
[1768411606555,0.397,3371.7,3370.7,2.29465673]
[1768411606787,0.397,3371.7,3370.9,2.29465673]
[1768411607083,2.96560525,3372.0,3371.0,2.29465673]
[1768411607283,6.33005578,3372.1,3371.0,2.29465673]
[1768411607589,4.20960289,3371.9,3370.5,0.001]
[1768411607764,2.42960289,3371.6,3370.5,0.001]
[1768411607960,2.42960289,3371.4,3370.5,0.001]
[1768411608301,1.56088085,3371.5,3370.5,0.001]
[1768411608671,3.99048374,3371.5,3370.5,0.001]
[1768411609391,2.42960289,3371.4,3370.5,0.001]
[1768411609587,2.42960289,3371.3,3370.5,0.001]
[1768411609782,2.96639079,3371.1,3370.5,0.001]
[1768411609982,8.36238447,3371.1,3370.5,0.001]
[1768411610369,2.81845965,3371.0,3370.5,0.001]
[1768411611869,2.42145965,3370.8,3369.6,2.96770179]
[1768411612097,2.42145965,3370.7,3369.7,0.56624418]
[1768411612797,1.1717984,3370.8,3369.7,0.56624418]
[1768411613175,2.9666247,3370.9,3369.9,2.30274004]
[1768411613503,0.397,3370.7,3369.9,2.30274004]
[1768411613708,0.397,3370.7,3370.0,0.01390881]
[1768411613882,0.397,3370.7,3369.9,2.30274004]
[1768411614089,0.397,3370.9,3370.0,2.30274004]
[1768411614278,2.96650982,3371.0,3370.0,2.30274004]
[1768411614279,6.33001964,3371.0,3370.0,2.30274004]
[1768411614600,7.24544316,3371.0,3370.0,2.30274004]